bitfinex-derivatives/quotes_ETHF0:USTF0_20240830
["timestamp","ask_amount","ask_price","bid_price","bid_amount"]
[1725042861643,7.57794,2517.1,2517.0,2.9587396]
[1725042862036,14.57129,2517.1,2517.0,2.9587396]
[1725042862241,1.3908,2516.9,2516.8,3.45148517]
[1725042862440,6.35783,2516.9,2516.8,3.45148517]
[1725042862650,1.39085,2516.8,2516.7,3.99625726]
[1725042862847,3.2078,2517.1,2516.7,3.99625726]
[1725042863147,3.2078,2517.1,2516.7,4.39365726]
[1725042863447,0.39736,2517.0,2516.7,4.39364726]
[1725042863647,0.39737,2516.9,2516.7,3.99625726]
[1725042863840,0.39738,2516.8,2516.7,3.99625726]
[1725042864041,3.60518,2516.8,2516.7,3.99625726]
[1725042864235,7.57878,2516.8,2516.7,3.99625726]
[1725042864851,4.37098,2516.8,2516.7,3.99625726]
[1725042865151,7.57878,2516.8,2516.7,3.99625726]
[1725042865544,14.57225,2516.8,2516.7,3.99625726]
[1725042866054,10.37098,2516.8,2516.7,3.99625726]
[1725042866348,13.57878,2516.8,2516.7,3.99625726]
[1725042867143,7.57878,2516.8,2516.7,3.99625726]
[1725042867440,4.37098,2516.8,2516.7,3.99625726]
[1725042867839,13.57878,2516.8,2516.7,3.99625726]
[1725042868254,0.39748,2516.3,2516.0,4.77]
[1725042868447,0.39748,2516.3,2516.1,0.39749]
[1725042868647,3.61120108,2516.4,2516.2,0.39748]
[1725042868855,7.58560108,2516.4,2516.1,0.39749]
[1725042869049,0.40340108,2516.4,2516.1,0.39748]
[1725042869648,0.00595108,2516.4,2516.0,4.77]
[1725042869844,1.54813606,2517.8,2516.3,7.9778]
[1725042870045,0.39719,2518.1,2517.5,4.77]
[1725042870247,0.39722,2517.9,2517.5,4.77]
[1725042870452,3.2078,2518.4,2517.5,4.77]
[1725042870745,0.39723,2517.8,2517.7,0.00595108]
[1725042870945,0.3972,2518.0,2517.7,0.40319108]
[1725042871151,0.00595108,2518.2,2517.9,0.39721]
[1725042871152,0.40312108,2518.2,2517.9,0.39721]
[1725042871347,0.00595108,2518.2,2517.7,0.00595108]
[1725042871652,0.39722,2517.9,2517.7,0.00595108]
[1725042872447,3.21375108,2518.2,2517.7,0.00595108]
[1725042872760,0.00595108,2518.2,2518.1,0.39718]
[1725042873143,0.00595108,2518.2,2518.0,0.39718]
[1725042873356,0.00595108,2518.2,2517.8,4.77]
[1725042873545,0.39719,2518.1,2517.8,0.39722]
[1725042873751,3.21375108,2518.2,2517.7,0.40318108]
[1725042873752,0.3972,2518.0,2517.7,0.40318108]
[1725042873949,0.39721,2517.9,2517.7,0.00595108]
[1725042874151,3.21375108,2518.2,2517.7,0.00595108]
[1725042874468,0.3972,2518.0,2517.7,0.40319108]
[1725042874955,0.39721,2518.0,2517.7,0.40319108]
[1725042875256,3.21375108,2518.2,2517.7,0.40319108]
[1725042875448,0.39721,2518.0,2517.7,0.40319108]
[1725042875649,0.39719,2518.1,2517.8,0.39722]
[1725042875962,0.39719,2518.1,2517.7,0.00595108]
[1725042875963,0.3972,2518.0,2517.7,0.40319108]
[1725042876644,0.3972,2518.0,2517.7,0.00595108]
[1725042876954,0.39723,2517.8,2517.7,0.00595108]
[1725042877160,1.3903,2517.8,2517.7,0.00595108]
[1725042877347,15.85483163,2517.8,2517.7,0.00595108]
[1725042877653,11.3623,2517.8,2517.7,0.00595108]
[1725042877854,3.2078,2517.9,2517.7,0.00595108]
[1725042878043,0.39723,2517.8,2517.7,0.00595108]
[1725042878248,5.3623,2517.8,2517.7,0.00595108]
[1725042878458,11.3623,2517.8,2517.7,0.00595108]
[1725042879057,3.60501,2517.9,2517.7,0.40318108]
[1725042879260,3.2078,2517.9,2517.7,0.00595108]
[1725042879560,3.60501,2517.9,2517.7,0.40319108]
[1725042880253,3.2078,2517.9,2517.8,0.39723]
[1725042881053,3.2078,2517.9,2517.8,4.36923]
[1725042881254,0.00595108,2518.2,2518.1,0.39718]
[1725042881460,0.19812922,2519.2,2518.2,0.99292]
[1725042881461,0.99254,2519.2,2518.2,0.99292]
[1725042881754,0.39703,2519.1,2518.8,0.39706]
[1725042882254,0.39705,2518.9,2518.4,3.2078]
[1725042882454,0.00595108,2518.9,2518.8,0.39707]
[1725042882652,0.00595108,2518.9,2518.7,0.39708]
[1725042882848,0.00595108,2518.9,2518.4,3.2078]
[1725042882849,0.99861108,2518.9,2518.4,3.2078]
[1725042883048,0.9928,2518.6,2517.8,6.945]
[1725042883251,0.39717,2518.2,2517.9,0.3972]
[1725042883453,0.39722,2517.9,2517.7,0.00595108]
[1725042883652,0.3972,2518.0,2517.7,0.40318108]
[1725042883855,0.3972,2518.0,2517.7,0.40319108]
[1725042884153,0.39723,2517.8,2517.7,0.00595108]
[1725042884355,4.20768478,2518.3,2517.7,0.00595108]
[1725042884555,3.82163606,2518.8,2518.2,0.39715]
[1725042884556,0.39711,2518.6,2518.2,0.39715]
[1725042884757,0.39712,2518.5,2517.9,3.2078]
[1725042884945,3.2078,2518.8,2517.9,4.20082]
[1725042885147,3.60487,2518.8,2518.2,3.2078]
[1725042885351,3.2078,2518.8,2518.5,0.39711]
[1725042885550,3.2078,2518.8,2518.2,3.2078]
[1725042885760,3.2078,2518.8,2518.7,0.39708]
[1725042886461,3.2078,2518.8,2518.3,0.99288]
[1725042886762,3.2078,2518.8,2518.7,0.39708]
[1725042886957,0.99272,2518.7,2518.2,3.2078]
[1725042887151,0.99272,2518.7,2518.0,2.2322]
[1725042887152,0.39714,2518.4,2518.0,2.62939]
[1725042887457,0.39714,2518.4,2517.6,3.2078]
[1725042887458,3.2078,2518.4,2517.6,3.2078]
[1725042887651,0.99282,2518.5,2517.6,3.2078]
[1725042887853,0.39718,2518.2,2517.8,0.39722]
[1725042888055,0.39717,2518.2,2517.9,0.39721]
[1725042888245,0.39718,2518.1,2517.8,0.39722]
[1725042888446,0.39717,2518.2,2517.8,0.39722]
[1725042888852,0.99284,2518.4,2517.8,0.39722]
[1725042889058,0.99284,2518.4,2517.7,0.40318108]
[1725042889059,0.39719,2518.1,2517.7,0.40318108]
[1725042889263,0.39717,2518.2,2517.9,0.39721]
[1725042889448,0.39717,2518.2,2517.8,0.39722]
[1725042889653,0.99276,2518.6,2517.8,0.39722]
[1725042889654,0.39718,2518.1,2517.8,0.39722]
[1725042889951,0.99285,2518.4,2517.7,0.00595108]
[1725042889952,0.39717,2518.2,2517.7,0.00595108]
[1725042890156,0.39714,2518.4,2518.0,0.39718]
[1725042890362,0.39714,2518.4,2517.7,0.00595108]
[1725042890363,3.2078,2518.4,2517.7,0.00595108]
[1725042890560,3.2078,2518.7,2517.7,0.00595108]
[1725042890760,0.99269,2518.8,2517.7,0.00595108]
[1725042890761,0.39723,2517.8,2517.7,0.00595108]
[1725042890952,0.39721,2517.9,2517.7,0.00595108]
[1725042891259,0.39721,2517.9,2517.0,0.39734]
[1725042891260,0.99309,2517.8,2517.0,0.39734]
[1725042891461,0.99309,2517.8,2516.6,6.46763]
[1725042891462,0.99315,2517.6,2517.1,0.39733]
[1725042891761,0.39733,2517.2,2516.6,5.4741]
[1725042891962,0.99316,2517.6,2517.1,0.39733]
[1725042892154,0.99316,2517.6,2516.6,3.2078]
[1725042892356,4.22356778,2517.4,2517.2,0.39732]
[1725042892552,0.00595108,2517.4,2516.9,0.99343]
[1725042892852,0.00595108,2517.4,2517.3,0.39731]
[1725042893159,0.00595108,2517.4,2517.3,9.14011]
[1725042893360,0.00595108,2517.4,2517.3,5.16731]
[1725042893559,0.39719,2518.1,2517.8,0.39722]
[1725042893757,0.99281,2518.5,2517.5,4.20098]
[1725042893957,0.99281,2518.5,2517.7,0.39723]
[1725042894156,0.99311,2517.7,2517.2,3.2078]
[1725042894361,0.99298,2518.1,2517.2,3.2078]
[1725042894558,0.00595108,2517.9,2517.8,0.39723]
[1725042894967,0.00595108,2517.9,2517.7,0.39724]
[1725042895165,0.00595108,2517.9,2517.8,0.39723]
[1725042895363,0.00595108,2517.9,2517.7,0.39723]
[1725042895561,0.00595108,2517.9,2517.8,0.39723]
[1725042895956,0.00595108,2517.9,2517.8,3.60503]
[1725042896157,0.00595108,2517.9,2517.8,8.5701]
[1725042896363,3.60494,2518.4,2517.8,4.36923]
[1725042896562,0.39718,2518.2,2517.6,3.2078]
[1725042896765,0.39718,2518.2,2517.9,0.3972]
[1725042897066,0.39718,2518.1,2517.9,0.3972]
[1725042897257,0.39718,2518.1,2517.8,0.39722]
[1725042897463,0.39718,2518.1,2517.9,0.39721]
[1725042897666,0.00595108,2518.3,2517.9,0.39721]
[1725042897862,0.99294,2518.2,2517.7,3.2078]
[1725042898067,0.99294,2518.2,2517.7,3.60504]
[1725042898273,0.993,2518.0,2517.6,0.39725]
[1725042898466,0.39727,2517.6,2517.4,3.2078]
[1725042898763,0.39727,2517.5,2517.4,3.2078]
[1725042898965,0.39727,2517.5,2516.9,2.1788]
[1725042898966,4.96515,2517.6,2516.9,2.1788]
[1725042899162,0.99309,2517.8,2517.3,0.3973]
[1725042899363,0.39728,2517.5,2517.3,0.3973]
[1725042899670,0.39728,2517.5,2517.2,0.39731]
[1725042899963,0.39728,2517.5,2517.3,0.3973]
[1725042900362,0.99309,2517.8,2517.0,0.99338]
[1725042900665,0.39726,2517.7,2517.4,0.39728]
[1725042900866,0.99309,2517.8,2516.9,3.56982]
[1725042901065,4.20088,2517.8,2517.3,0.39729]
[1725042901468,3.2078,2517.8,2517.0,0.99339]
[1725042901665,2.54697714,2518.3,2517.6,0.99315]
[1725042901863,0.00595108,2518.3,2518.1,0.39717]
[1725042902068,0.00595108,2518.3,2518.2,0.39716]
[1725042902370,0.39716,2518.2,2518.0,0.39719]
[1725042902561,0.00595108,2518.3,2518.2,0.39716]
[1725042902869,1.54813606,2519.0,2518.3,0.99288]
[1725042903071,1.54813606,2519.1,2518.7,0.39707]
[1725042903265,1.54813606,2519.1,2518.8,0.39706]
[1725042903465,2.06418142,2519.3,2518.5,3.2078]
[1725042903466,1.54813606,2519.2,2518.5,3.2078]
[1725042903660,1.54813606,2519.2,2518.0,1.39448221]
[1725042903661,0.9927,2518.8,2518.2,0.39715]
[1725042903965,0.00595108,2518.8,2518.2,0.00595108]
[1725042904164,0.00595108,2518.8,2518.7,0.39708]
[1725042904371,0.00595108,2518.8,2518.4,7.9778]
[1725042904673,0.39711,2518.6,2518.4,4.77]
[1725042904977,0.39712,2518.5,2518.2,0.40311108]
[1725042905173,0.39715,2518.3,2518.2,0.00595108]
[1725042905373,4.51346824,2518.4,2517.4,0.4013147]
[1725042905565,4.51346824,2518.4,2516.9,3.6091147]
[1725042905566,0.9932,2517.5,2516.9,3.6091147]
[1725042905778,0.39728,2517.5,2517.2,0.39731]
[1725042906264,0.39728,2517.5,2516.9,3.2078]
[1725042906265,3.2078,2517.7,2516.9,3.2078]
[1725042906462,0.99319,2517.5,2517.1,0.00595108]
[1725042906867,0.39731,2517.3,2517.1,0.00595108]
[1725042907380,0.3973,2517.4,2517.1,0.40328108]
[1725042907676,0.39729,2517.5,2517.2,0.39732]
[1725042907879,0.3973,2517.4,2517.1,0.40328108]
[1725042908171,0.00595108,2517.6,2517.1,0.40328108]
[1725042908172,0.00595108,2517.6,2517.5,0.39727]
[1725042908763,0.00595108,2517.6,2517.5,4.36927]
[1725042909276,1.54813606,2518.3,2517.5,14.17299]
[1725042909577,1.54813606,2518.3,2518.0,0.39718]
[1725042909578,0.39715,2518.3,2518.0,0.39718]
[1725042909776,3.60494,2518.4,2518.1,0.39717]
[1725042910172,0.99288,2518.3,2517.6,0.4013147]
[1725042910370,0.00595108,2518.2,2517.8,0.39722]
[1725042910572,0.00595108,2518.2,2517.5,5.3997]
[1725042910573,0.3972,2518.0,2517.7,0.39724]
[1725042910773,0.3972,2518.0,2517.7,0.39723]
[1725042911481,0.3972,2518.0,2517.6,0.39726]
[1725042911482,0.993,2518.0,2517.6,0.39726]
[1725042911786,0.39726,2517.6,2517.4,4.77]
[1725042912077,3.2078,2517.8,2517.2,3.2078]
[1725042912380,0.39732,2517.2,2517.1,0.00595108]
[1725042912578,1.39063,2517.2,2517.1,0.00595108]
[1725042912783,4.37012,2517.2,2517.1,0.00595108]
[1725042912973,0.39732,2517.2,2517.1,0.00595108]
[1725042913289,4.75593606,2517.5,2517.1,0.40329108]
[1725042913474,1.54813606,2517.6,2517.1,0.40328108]
[1725042913690,1.54813606,2517.6,2517.2,0.39732]
[1725042913872,0.39731,2517.3,2517.1,0.00595108]
[1725042914288,1.54813606,2517.5,2517.1,0.00595108]
[1725042914579,0.3973,2517.4,2517.1,0.40328108]
[1725042914971,1.94541606,2517.5,2517.3,0.3973]
[1725042915287,1.54813606,2517.6,2517.2,3.2078]
[1725042915487,1.54813606,2517.7,2517.5,0.39727]
[1725042915674,0.39727,2517.6,2517.2,3.2078]
[1725042915986,0.39728,2517.5,2517.3,0.3973]
[1725042916185,1.94540606,2517.6,2517.3,0.3973]
[1725042916388,0.39727,2517.6,2517.3,0.3973]
[1725042916679,0.39727,2517.5,2517.2,3.60511]
[1725042916877,1.54813606,2517.6,2517.1,0.00595108]
[1725042917085,0.39732,2517.2,2517.1,0.00595108]
[1725042918979,5.36343,2517.2,2517.1,0.00595108]
[1725042919179,12.35674,2517.2,2517.1,0.00595108]
[1725042919375,1.39091,2516.7,2516.6,0.40158906]
[1725042919581,0.39745,2516.4,2516.3,3.2078]
[1725042919788,0.39745,2516.4,2516.3,0.40162913]
[1725042920386,1.95438249,2516.9,2516.3,4.37603003]
[1725042920686,0.39738,2516.8,2516.5,0.39742]
[1725042920871,0.3974,2516.7,2516.5,0.39742]
[1725042921078,0.99351,2516.7,2516.1,0.00595108]
[1725042921277,0.39744,2516.5,2516.3,0.39746]
[1725042921472,0.39744,2516.5,2516.2,0.39747]
[1725042921677,0.39744,2516.5,2516.3,0.39746]
[1725042921982,1.56295357,2516.9,2516.1,0.00595108]
[1725042921983,0.39746,2516.3,2516.1,0.40344108]
[1725042922480,0.39746,2516.4,2516.1,0.40344108]
[1725042923182,0.39746,2516.4,2516.2,0.39748]
[1725042923784,0.39746,2516.4,2516.1,0.40343108]
[1725042923989,0.39746,2516.3,2516.1,0.40343108]
[1725042924177,0.39748,2516.2,2516.1,0.00595108]
[1725042924382,1.39119,2516.2,2516.1,0.00595108]
[1725042924777,0.39757,2515.6,2515.3,3.2078]
[1725042924980,0.39757,2515.7,2515.5,0.39759]
[1725042925183,0.39757,2515.6,2515.4,0.39759]
[1725042925383,0.39757,2515.6,2515.3,3.60541]
[1725042925582,4.20166,2515.9,2514.8,5.17172987]
[1725042925583,3.2078,2515.9,2514.8,5.17172987]
[1725042925782,2.06418142,2516.9,2515.6,7.9778]
[1725042925978,7.93745529,2517.1,2516.4,0.39745]
[1725042925979,0.00596315,2516.5,2516.4,0.39745]
[1725042926179,0.00596315,2516.5,2516.3,7.9778]
[1725042926180,0.00596315,2516.5,2516.3,5.16746]
[1725042926586,0.40340315,2516.5,2516.3,4.77]
[1725042927183,0.00596315,2516.5,2516.3,5.16745]
[1725042927391,0.00596315,2516.5,2516.4,0.39745]
[1725042927587,10.67899142,2517.5,2517.0,0.39734]
[1725042927788,10.67899142,2517.5,2516.8,0.39738]
[1725042927789,0.39734,2517.1,2516.8,0.39738]
[1725042928089,0.39735,2517.0,2516.8,0.39738]
[1725042928293,0.39735,2517.0,2516.4,0.39744]
[1725042928294,0.39741,2516.7,2516.4,0.39744]
[1725042928478,4.20116,2517.1,2516.4,0.39744]
[1725042928479,0.00596315,2516.8,2516.4,0.39744]
[1725042928682,0.39741,2516.7,2516.4,0.39744]
[1725042928883,0.99945315,2516.8,2516.3,4.77]
[1725042929091,0.39744,2516.5,2516.3,4.77]
[1725042929286,0.39744,2516.5,2516.2,0.40343315]
[1725042929287,0.99351,2516.7,2516.2,0.40344315]
[1725042929495,0.39745,2516.4,2516.2,0.40344315]
[1725042929690,0.39745,2516.4,2516.2,0.00596315]
[1725042930591,0.39744,2516.5,2516.2,0.40344315]
[1725042930795,0.99351,2516.7,2516.2,0.00596315]
[1725042930796,0.39746,2516.4,2516.2,0.00596315]
[1725042930997,0.39746,2516.4,2516.2,0.40344315]
[1725042931189,0.39746,2516.3,2516.2,0.00596315]
[1725042931393,1.39113,2516.3,2516.2,0.00596315]
[1725042931593,5.36553,2516.3,2516.2,0.00596315]
[1725042931789,0.39758,2515.6,2515.4,3.2078]
[1725042932002,0.39757,2515.7,2515.5,0.39759]
[1725042932297,4.20161,2516.0,2515.4,3.2078]
[1725042932501,0.99371,2516.2,2515.4,3.2078]
[1725042932791,0.39756,2515.8,2515.5,0.40354315]
[1725042933091,0.39756,2515.7,2515.5,0.00596315]
[1725042933296,0.39757,2515.6,2515.5,0.00596315]
[1725042933790,7.183,2516.0,2515.5,3.98116315]
[1725042933791,3.2078,2516.0,2515.5,3.98116315]
[1725042934100,2.3346,2516.6,2515.7,7.9778]
[1725042934302,0.00596315,2516.8,2516.4,4.77]
[1725042934491,0.00596315,2516.8,2516.6,0.39741]
[1725042934689,0.00596315,2516.8,2516.4,4.77]
[1725042934893,3.21376315,2516.8,2516.4,4.77]
[1725042935189,3.21376315,2516.8,2516.4,7.9778]
[1725042935387,0.00596315,2516.8,2516.7,0.3974]
[1725042936291,0.00596315,2516.8,2516.7,4.371]
[1725042936491,0.39728,2517.5,2516.7,18.94491]
[1725042936692,3.2078,2517.6,2517.1,4.77]
[1725042936998,7.7295,2518.1,2517.5,4.77]
[1725042937201,5.09394635,2518.8,2517.9,4.77]
[1725042937202,2.06418142,2518.7,2517.9,4.77]
[1725042937393,6.31634635,2519.2,2517.9,4.77]
[1725042937394,7.86243671,2519.1,2518.3,4.77]
[1725042937693,0.00080444,2519.5,2518.8,3.2078]
[1725042937694,2.06418142,2519.3,2518.8,3.2078]
[1725042937890,0.00080444,2519.5,2518.9,0.39705]
[1725042937891,0.00596315,2519.0,2518.9,0.39705]
[1725042938291,0.00596315,2519.0,2518.9,4.36665]
[1725042938492,0.00596315,2519.0,2518.9,3.9696]
[1725042938798,3.97556315,2519.0,2518.5,0.3971]
[1725042938994,3.97556315,2519.0,2518.4,5.16712]
[1725042938995,0.00596315,2519.0,2518.4,5.16712]
[1725042939195,0.00596315,2519.0,2518.5,0.39711]
[1725042939390,0.00596315,2519.0,2518.4,4.77]
[1725042939791,0.40300315,2519.0,2518.4,5.16712]
[1725042940103,0.40300315,2519.0,2518.7,4.77]
[1725042940104,0.00596315,2519.0,2518.7,4.77]
[1725042940297,0.00080444,2519.5,2518.9,3.2078]
[1725042940597,0.00080444,2519.5,2519.2,4.77]
[1725042941198,0.00080444,2519.5,2519.3,0.39699]
[1725042941402,0.00080444,2519.5,2519.4,0.39697]
[1725042941793,0.00080444,2519.5,2519.4,4.36577]
[1725042942100,0.00080444,2519.5,2519.2,8.3754]
[1725042942296,0.00080444,2519.5,2519.4,0.39697]
[1725042942601,2.1406,2521.0,2520.7,0.39676]
[1725042942793,2.59045529,2521.6,2520.9,4.77]
[1725042942794,2.06418142,2521.6,2520.9,4.77]
[1725042943097,0.39661,2521.7,2520.9,5.16673]
[1725042943309,3.2078,2521.8,2520.9,4.77]
[1725042943498,0.39668,2521.3,2521.1,0.0059499]
[1725042943693,0.0059499,2521.6,2521.1,0.0059499]
[1725042943889,0.39669,2521.2,2521.1,0.0059499]
[1725042944095,3.9723499,2521.6,2521.1,0.0059499]
[1725042944096,0.39667,2521.4,2521.1,0.0059499]
[1725042944295,0.0059499,2521.6,2521.1,0.0059499]
[1725042944492,0.39667,2521.4,2521.1,0.0059499]
[1725042944695,3.9723499,2521.6,2521.1,0.0059499]
[1725042944897,0.39669,2521.2,2521.1,0.0059499]
[1725042945302,0.39669,2521.2,2520.5,3.2078]
[1725042945303,9.9664,2521.2,2520.5,3.2078]
[1725042945503,0.39678,2520.7,2520.5,3.2078]
[1725042945702,0.39676,2520.8,2520.3,4.77]
[1725042945995,3.9672,2520.9,2520.3,4.77]
[1725042946199,3.2078,2521.0,2520.3,4.7759499]
[1725042946200,4.56035623,2520.7,2520.3,4.7759499]
[1725042946399,0.39676,2520.8,2520.3,4.7759499]
[1725042946601,4.4791,2521.1,2520.3,4.7759499]
[1725042946806,0.39679,2520.6,2520.3,4.7759499]
[1725042946991,0.39682,2520.4,2520.3,0.0059499]
[1725042947497,13.1758,2520.4,2519.5,4.77]
[1725042947693,0.3969,2519.9,2519.5,4.77]
[1725042947904,3.2078,2519.8,2519.1,3.2078]
[1725042948209,4.53051769,2520.3,2519.1,3.2078]
[1725042948210,3.2078,2520.0,2519.2,4.77]
[1725042948507,0.99213,2520.2,2519.3,0.39699]
[1725042948690,6.43276415,2520.4,2519.6,4.77]
[1725042948691,0.0059499,2520.0,2519.6,4.77]
[1725042948894,0.0059499,2520.0,2519.8,0.3969]
[1725042949095,0.0059499,2520.0,2519.6,4.77]
[1725042949096,0.0059499,2520.0,2519.6,8.7388]
[1725042949300,0.0059499,2520.0,2519.9,0.3969]
[1725042949602,0.4028399,2520.0,2519.8,3.2078]
[1725042949792,3.9688,2519.9,2519.5,0.0059499]
[1725042950101,3.60474,2519.6,2519.5,0.0059499]
[1725042950611,4.36574,2519.6,2519.5,0.0059499]
[1725042951103,4.43270187,2519.6,2519.5,0.0059499]
[1725042951300,4.82964187,2519.6,2519.5,0.0059499]
[1725042951604,4.82964187,2519.6,2518.9,4.77]
[1725042951605,13.1766,2519.6,2518.9,4.77]
[1725042951804,0.39697,2519.5,2519.0,0.39703]
[1725042952199,3.2078,2519.6,2518.9,5.16705]
[1725042952398,0.39698,2519.4,2519.0,0.39704]
[1725042952602,0.39698,2519.4,2518.9,4.77]
[1725042952603,0.39698,2519.4,2518.9,4.7759499]
[1725042953001,0.39699,2519.3,2518.9,4.7759499]
[1725042953296,0.39703,2519.1,2518.9,4.7759499]
[1725042953493,0.9924,2519.5,2518.9,4.7759499]
[1725042953694,3.2078,2519.6,2518.9,5.1729999]
[1725042954102,3.2078,2519.6,2518.9,4.7759499]
[1725042954304,0.9924,2519.5,2518.9,4.7759499]
[1725042954497,0.39701,2519.2,2518.9,4.7759499]
[1725042954800,4.20028,2519.3,2518.9,0.0059499]
[1725042955008,3.2078,2519.0,2518.9,0.0059499]
[1725042955203,7.57444,2519.0,2518.9,0.0059499]
[1725042955395,13.1774,2519.0,2518.1,4.77]
[1725042955594,13.1774,2519.0,2517.8,3.2078]
[1725042955595,3.2078,2518.3,2517.8,3.2078]
[1725042955900,0.39716,2518.3,2517.9,0.3972]
[1725042956118,0.39713,2518.5,2518.1,0.39717]
[1725042956604,0.4030599,2518.6,2518.0,0.0059499]
[1725042956804,0.0059499,2518.6,2518.1,0.39717]
[1725042957109,0.4030599,2518.6,2518.0,0.0059499]
[1725042957311,0.39701,2519.2,2518.5,4.77]
[1725042957500,0.39702,2519.1,2518.7,3.60488]
[1725042957694,3.2078,2519.3,2518.9,0.39705]
[1725042957909,3.2078,2519.6,2519.0,3.2078]
[1725042958204,0.39695,2519.6,2519.2,4.77]
[1725042958410,0.4028799,2519.7,2519.2,5.167]
[1725042958606,0.39695,2519.6,2519.2,4.77]
[1725042959199,0.0059499,2519.7,2519.2,4.77]
[1725042959815,0.0059499,2519.7,2519.6,5.16694]
[1725042960106,0.99195,2520.7,2520.0,4.77]
[1725042960107,0.39683,2520.3,2520.0,4.77]
[1725042960300,0.39683,2520.4,2520.0,4.77]
[1725042960706,3.2078,2520.7,2520.0,7.9778]
[1725042961008,0.39682,2520.4,2520.0,7.9778]
[1725042961206,0.39681,2520.5,2520.0,5.16687]
[1725042961412,0.0059499,2520.6,2520.0,5.16687]
[1725042961708,0.39681,2520.5,2520.0,5.16687]
[1725042962297,0.39682,2520.4,2520.0,4.77]
[1725042962504,0.4027399,2520.6,2520.1,0.39685]
[1725042962703,0.0059499,2520.6,2520.2,0.39684]
[1725042963109,0.0059499,2520.6,2520.5,0.3968]
[1725042963408,0.40150151,2522.2,2520.8,0.39675]
[1725042963409,3.2078,2521.6,2520.8,0.39675]
[1725042963709,0.39669,2521.3,2520.8,0.39675]
[1725042963904,0.39662,2521.7,2520.9,3.2078]
[1725042964105,0.39664,2521.6,2521.1,0.3967]
[1725042964305,4.4537,2521.8,2521.1,0.3967]
[1725042964508,0.39664,2521.5,2521.1,4.7759499]
[1725042964713,0.39666,2521.4,2521.1,4.7759499]
[1725042965004,0.39667,2521.4,2521.1,4.7759499]
[1725042965395,0.39668,2521.3,2521.1,4.7759499]
[1725042965598,0.39667,2521.4,2521.1,0.0059499]
[1725042965819,0.0059499,2521.6,2521.1,3.2137499]
[1725042966002,0.0059499,2521.6,2521.1,7.9837499]
[1725042966212,0.39666,2521.5,2521.1,7.9837499]
[1725042966414,0.4025899,2521.6,2521.1,8.3804599]
[1725042966711,0.4025899,2521.6,2521.1,7.9837499]
[1725042966712,0.39665,2521.5,2521.1,7.9837499]
[1725042967106,0.0059499,2521.6,2521.1,7.9837499]
[1725042967808,4.19883,2523.0,2522.0,0.39657]
[1725042968010,0.39646,2522.7,2522.2,3.60433]
[1725042968309,0.99095,2523.2,2522.2,3.2078]
[1725042968507,4.60488429,2523.3,2522.2,3.60433]
[1725042968508,0.39646,2522.7,2522.2,3.60433]
[1725042968814,0.39647,2522.6,2522.2,3.6102799]
[1725042969015,0.0059499,2522.7,2522.3,0.39651]
[1725042969210,0.4024099,2522.7,2522.4,4.77]
[1725042969401,0.4024099,2522.7,2522.4,5.1665]
[1725042969402,0.0059499,2522.7,2522.4,5.1665]
[1725042969601,0.0059499,2522.7,2522.5,3.2078]
[1725042969798,0.0059499,2522.7,2522.6,0.39647]
[1725042970017,3.2078,2523.5,2522.6,4.3608]
[1725042970209,3.2078,2523.5,2522.4,4.77]
[1725042970210,3.2078,2523.2,2522.2,3.2137499]
[1725042970409,0.3965,2522.5,2522.2,3.2137499]
[1725042970600,0.3965,2522.5,2522.2,0.0059499]
[1725042970601,0.39652,2522.3,2522.2,0.0059499]
[1725042971110,0.39651,2522.4,2522.2,0.0059499]
[1725042971307,0.40041844,2522.5,2522.2,0.0059499]
[1725042971504,0.00392844,2522.5,2522.2,0.0059499]
[1725042971707,0.39652,2522.3,2522.2,0.0059499]
[1725042972110,4.36132,2522.3,2522.2,0.0059499]
[1725042972518,5.35262,2522.3,2522.2,0.0059499]
[1725042972706,4.36132,2522.3,2522.2,0.0059499]
[1725042972908,11.35262,2522.3,2522.2,0.0059499]
[1725042973207,11.35262,2522.3,2521.7,4.77]
[1725042973208,0.39657,2522.0,2521.7,4.77]
[1725042973411,3.2078,2522.0,2521.7,4.77]
[1725042973716,0.39656,2522.1,2521.8,0.39659]
[1725042973920,0.99516844,2522.5,2521.4,4.77]
[1725042973921,0.39661,2521.8,2521.4,4.77]
[1725042974112,0.3966,2521.8,2521.5,0.39664]
[1725042974308,0.3966,2521.8,2521.4,4.7759499]
[1725042974503,0.3966,2521.8,2521.5,0.39664]
[1725042974805,3.2078,2522.1,2521.4,4.7759499]
[1725042975011,0.99134,2522.2,2521.4,4.7759499]
[1725042975208,0.39658,2521.9,2521.4,7.9837499]
[1725042975515,0.39656,2522.1,2521.8,0.39659]
[1725042975713,3.2078,2522.3,2521.4,7.9837499]
[1725042975913,6.60831,2523.1,2521.4,7.9837499]
[1725042975914,8.45592153,2522.0,2521.4,7.9837499]
[1725042976113,8.45592153,2522.0,2521.4,0.0059499]
[1725042976114,3.2078,2521.6,2521.4,0.0059499]
[1725042976414,0.39671,2521.1,2520.8,0.39675]
[1725042976614,0.39668,2521.3,2521.0,0.39672]
[1725042976806,0.39668,2521.3,2520.9,4.77]
[1725042976807,0.99162,2521.5,2520.9,4.77]
[1725042977002,0.99153,2521.8,2520.9,4.77]
[1725042977003,0.3967,2521.2,2520.9,5.16674]
[1725042977213,0.99153,2521.8,2521.2,0.39669]
[1725042977417,0.0059499,2521.3,2521.2,0.39669]
[1725042977610,0.0059499,2521.3,2521.0,0.39671]
[1725042978004,0.0059499,2521.3,2521.1,0.3967]
[1725042978319,0.0059499,2521.3,2521.2,3.60449]
[1725042978511,0.0059499,2521.3,2521.2,7.57089]
[1725042979013,0.39658,2522.0,2521.5,0.39663]
[1725042979221,3.29168,2522.2,2521.5,4.77]
[1725042979417,3.29168,2522.2,2521.6,0.39662]
[1725042979611,0.39656,2522.1,2521.5,4.77]
[1725042979919,0.99123,2522.5,2521.5,7.9778]
[1725042980128,5.3228,2522.6,2521.3,2.2879]